{"text_format":"3","workbook":"xlsx","n_sheets":2,"sheets":["ProjectPlanning","Over"],"not_rendered":{"images":1,"defined_names":7},"read":"whole","date_system":"1900"}

{"sheet":"ProjectPlanning","index":0,"n_rows":33,"n_cols":64,"rows_kept":33,"merged":[[2,2,2,3],[2,4,2,5],[3,2,3,3],[3,8,3,14],[3,15,3,21],[3,22,3,28],[3,29,3,35],[3,36,3,42],[3,43,3,49],[3,50,3,56],[3,57,3,63]]}
["Maak in dit werkblad een projectplanning.\nVoer in cel B1 de titel van dit project in. \nInformatie over hoe u dit werkblad gebruikt, waaronder instructies voor schermlezers en over de auteur van deze werkmap, staat op het werkblad Over.\nNavigeer verder omlaag in kolom A voor verdere instructies.","PROJECTTITEL",{"$nulls":6},"EENVOUDIGE GANTT-DIAGRAM door Vertex42.com"]
["Voer in cel B2 de bedrijfsnaam in.","Bedrijfsnaam",{"$nulls":6},"https://www.vertex42.com/ExcelTemplates/simple-gantt-chart.html"]
["Voer in cel B3 de naam van de projectleider in. Voer in cel E3 de begindatum van het project in. Begin van project: label is in cel C3.","Projectleider","Begin project:",null,{"$f":"TODAY()","v":"2022-02-22"}]
["De weergegeven week in cel E4 staat voor de in de projectplanning weer te geven beginweek in cel I4. De begindatum van het project wordt beschouwd als week 1. Als u de weergegeven week wilt wijzigen, voert u in cel E4 gewoon een nieuwe weeknummer in.\nDe begindatum van elke week, te beginnen bij de weergegeven week in cel E4, begint in cel I4 en wordt automatisch berekend. Er wordt in deze weergave acht weken weergegeven van cel I4 t/m cel BF4.\nU moet deze cellen niet wijzigen.\nHet label weergegeven week staat in cel C4.",null,"Weergegeven week:",null,1,{"$nulls":3},{"$f":"I5","v":"2022-02-21"},{"$nulls":6},{"$f":"P5","v":"2022-02-28"},{"$nulls":6},{"$f":"W5","v":"2022-03-07"},{"$nulls":6},{"$f":"AD5","v":"2022-03-14"},{"$nulls":6},{"$f":"AK5","v":"2022-03-21"},{"$nulls":6},{"$f":"AR5","v":"2022-03-28"},{"$nulls":6},{"$f":"AY5","v":"2022-04-04"},{"$nulls":6},{"$f":"BF5","v":"2022-04-11"}]
["De cellen I5 t/m BL5 bevatten het dagnummer voor de week die wordt weergegeven in het celblok boven elke datumcel en worden automatisch berekend.\nU moet deze cellen niet wijzigen.\nDe huidige datum heeft een rode omtrek (hex #AD3815) die vanaf de huidige datum in rij 5 door de hele datumkolom tot aan het eind van de projectplanning loopt.",{"$nulls":7},{"$f":"Begin_project-WEEKDAY(Begin_project,1)+2+7*(Weergegeven_week-1)","v":"2022-02-21"},{"$f":"I5+1","v":"2022-02-22"},{"$f":"J5+1","v":"2022-02-23"},"2022-02-24","2022-02-25","2022-02-26","2022-02-27",{"$f":"O5+1","v":"2022-02-28"},{"$f":"P5+1","v":"2022-03-01"},"2022-03-02","2022-03-03","2022-03-04","2022-03-05","2022-03-06",{"$f":"V5+1","v":"2022-03-07"},{"$f":"W5+1","v":"2022-03-08"},"2022-03-09","2022-03-10","2022-03-11","2022-03-12","2022-03-13",{"$f":"AC5+1","v":"2022-03-14"},{"$f":"AD5+1","v":"2022-03-15"},"2022-03-16","2022-03-17","2022-03-18","2022-03-19","2022-03-20",{"$f":"AJ5+1","v":"2022-03-21"},{"$f":"AK5+1","v":"2022-03-22"},"2022-03-23","2022-03-24","2022-03-25","2022-03-26","2022-03-27",{"$f":"AQ5+1","v":"2022-03-28"},{"$f":"AR5+1","v":"2022-03-29"},"2022-03-30","2022-03-31","2022-04-01","2022-04-02","2022-04-03",{"$f":"AX5+1","v":"2022-04-04"},{"$f":"AY5+1","v":"2022-04-05"},{"$f":"AZ5+1","v":"2022-04-06"},"2022-04-07","2022-04-08","2022-04-09","2022-04-10",{"$f":"BE5+1","v":"2022-04-11"},{"$f":"BF5+1","v":"2022-04-12"},{"$f":"BG5+1","v":"2022-04-13"},"2022-04-14","2022-04-15","2022-04-16","2022-04-17"]
["Deze rij bevat kopteksten voor de projectplanning die eronder staat. \nNavigeer van B6 t/m BL6 om de inhoud te horen. De eerste letter van elke dag van de week voor de datum boven die kop begint in cel I6 en gaat verder tot en met cel BL6.\nAlle grafieken van de projecttijdlijn worden automatisch gegenereerd op basis van de ingevoerde begin- en einddatums, met behulp van voorwaardelijke opmaak.\nWijzig de inhoud van cellen in de kolommen niet na kolom I vanaf cel I7.","TAAK","TOEGEWEZEN\nAAN","VOORTGANG","START","EINDE",null,"DAGEN",{"$f":"LEFT(TEXT(I5,\"ddd\"),1)","v":"M"},{"$f":"LEFT(TEXT(J5,\"ddd\"),1)","v":"T"},"W","T","F","S","S","M","T","W","T","F","S","S","M","T","W","T","F","S","S","M","T","W","T","F","S","S","M","T","W","T","F","S","S","M",{"$f":"LEFT(TEXT(AS5,\"ddd\"),1)","v":"T"},"W","T","F","S","S","M","T","W","T","F","S","S","M","T","W","T","F","S","S"]
["Verwijder deze rij niet. Deze rij is verborgen om een formule te handhaven die wordt gebruikt om de huidige dag in de projectplanning te markeren. ",{"$nulls":6},{"$f":"IF(OR(ISBLANK(task_start),ISBLANK(task_end)),\"\",task_end-task_start+1)","v":""}]
["Cel B8 bevat de voorbeeldtitel van Fase 1. \nVoer in cel B8 een nieuwe titel in.\nVoer in cel C8 een naam in waaraan de fase wordt toegewezen, indien van toepassing op uw project.\nVoer in cel D8 de voortgang voor het hele project in, indien van toepassing op uw project.\nVoer in de cellen E8 en F8 de begin- en einddatums voor het hele project in, indien van toepassing op uw project. \nHet Gantt-diagram wordt automatisch ingevuld met de juiste datums en wordt donkerder afhankelijk van de ingevoerde voortgang.\nAls u de fase wilt verwijderen en alleen vanuit taken wilt werken, verwijdert u gewoon deze rij.","Titel Fase 1",{"$nulls":5},{"$f":"IF(OR(ISBLANK(task_start),ISBLANK(task_end)),\"\",task_end-task_start+1)","v":""}]
["Cel B9 bevat de voorbeeldtaak 'Taak 1'. \nVoer in cel B9 een nieuwe taaknaam in.\nVoer in cel C9 een persoon in om de taak aan toe te wijzen.\nVoer in cel D9 de voortgang van de taak in. Een voortgangsbalk wordt weergegeven in de cel en wordt donkerder afhankelijk van het getal in de cel. Bij een voortgang van bijvoorbeeld 50 procent wordt de helft van de cel donker.\nVoer in cel E9 de begindatum van de taak in.\nVoer in cel F9 de einddatum van de taak in.\nEen voor de opgegeven datums donkerder gekleurde statusbalk wordt weergegeven in blokken, te beginnen bij cel I9 t/m BL9. ","Taak 1","Naam",{"v":0.5,"d":"50%"},{"$f":"Begin_project","v":"2022-02-22"},{"$f":"E9+3","v":"2022-02-25"},null,4]
["Rij 10 t/m 13 herhalen het patroon van rij 9. \nHerhaal de instructies van cel A9 voor alle taakrijen in dit werkblad. Overschrijf eventuele voorbeeldgegevens.\nEen voorbeeld van een andere fase begint in cel A14. \nGa door met het invoeren van taken in cellen A10 t/m A13 of ga naar cel A14 voor meer informatie.","Taak 2",null,{"v":0.6,"d":"60%"},{"$f":"F9","v":"2022-02-25"},{"$f":"E10+2","v":"2022-02-27"},null,3]
[null,"Taak 3",null,{"v":0.5,"d":"50%"},{"$f":"F10","v":"2022-02-27"},{"$f":"E11+4","v":"2022-03-03"},null,5]
[null,"Taak 4",null,{"v":0.25,"d":"25%"},{"$f":"F11","v":"2022-03-03"},{"$f":"E12+5","v":"2022-03-08"},null,6]
[null,"Taak 5",null,null,{"$f":"E10+1","v":"2022-02-26"},{"$f":"E13+2","v":"2022-02-28"},null,3]
["De cel rechts bevat de voorbeeldtitel van Fase 2. \nU kunt op elk gewenst moment een nieuwe fase maken in kolom B. Voor deze projectplanning zijn geen fasen vereist. U kunt de fase verwijderen door de rij gewoon te verwijderen.\nVoer in de cel rechts een nieuwe titel in om een nieuwe faseblok in deze rij te maken.\nOm taken te blijven toevoegen aan de bovenstaande fase voert u een nieuwe rij boven deze in en vult u de taakgegevens in volgens de instructies in cel A9.\nWerk in de cel rechts de fasegegevens bij op basis van de instructies in cel A8.\nBlijf omlaag navigeren door de cellen van kolom A voor meer informatie.\nAls u geen nieuwe rijen in dit werkblad hebt toegevoegd, vindt u in de cellen B20 en B26 twee extra voorbeeldfaseblokken die al voor u zijn gemaakt. Anders navigeert u door de cellen van kolom A voor extra blokken. \nHerhaal de instructies in cel A8 en A9 wanneer dat nodig is.","Titel Fase 2",{"$nulls":5},""]
[null,"Taak 1",null,{"v":0.5,"d":"50%"},{"$f":"E13+1","v":"2022-02-27"},{"$f":"E15+4","v":"2022-03-03"},null,5]
[null,"Taak 2",null,{"v":0.5,"d":"50%"},{"$f":"E15+2","v":"2022-03-01"},{"$f":"E16+5","v":"2022-03-06"},null,6]
[null,"Taak 3",null,null,{"$f":"F16","v":"2022-03-06"},{"$f":"E17+3","v":"2022-03-09"},null,4]
[null,"Taak 4",null,null,{"$f":"E17","v":"2022-03-06"},{"$f":"E18+2","v":"2022-03-08"},null,3]
[null,"Taak 5",null,null,{"$f":"E18","v":"2022-03-06"},{"$f":"E19+3","v":"2022-03-09"},null,4]
["Voorbeeld fasetitelblok","Titel Fase 3",{"$nulls":5},""]
[null,"Taak 1",null,null,{"$f":"E9+15","v":"2022-03-09"},{"$f":"E21+5","v":"2022-03-14"},null,6]
[null,"Taak 2",null,null,{"$f":"F21+1","v":"2022-03-15"},{"$f":"E22+4","v":"2022-03-19"},null,5]
[null,"Taak 3",null,null,{"$f":"E22+5","v":"2022-03-20"},{"$f":"E23+5","v":"2022-03-25"},null,6]
[null,"Taak 4",null,null,{"$f":"F23+1","v":"2022-03-26"},{"$f":"E24+4","v":"2022-03-30"},null,5]
[null,"Taak 5",null,null,{"$f":"E23","v":"2022-03-20"},{"$f":"E25+4","v":"2022-03-24"},null,5]
["Voorbeeld fasetitelblok","Titel Fase 4",{"$nulls":5},""]
[null,"Taak 1",null,null,"datum","datum",null,{"$error":"#VALUE!"}]
[null,"Taak 2",null,null,"datum","datum",null,{"$error":"#VALUE!"}]
[null,"Taak 3",null,null,"datum","datum",null,{"$error":"#VALUE!"}]
[null,"Taak 4",null,null,"datum","datum",null,{"$error":"#VALUE!"}]
[null,"Taak 5",null,null,"datum","datum",null,{"$error":"#VALUE!"}]
["Dit is nu een lege rij",{"$nulls":6},""]
["Deze rij geeft het einde van de projectplanning aan. Voer NIETS in deze rij in. \nVoeg nieuwe rijen BOVEN deze in om uw projectplanning verder uit te bouwen.","Voeg nieuwe rijen BOVEN deze in",{"$nulls":5},""]

{"sheet":"Over","index":1,"n_rows":16,"n_cols":1,"rows_kept":16}
[]
["EENVOUDIGE GANTT-DIAGRAM door Vertex42.com"]
["https://www.vertex42.com/ExcelTemplates/simple-gantt-chart.html"]
["Over deze sjabloon"]
["Deze sjabloon biedt een eenvoudige manier om een Gantt-diagram te maken voor het visualiseren en bijhouden van uw project. Voer gewoon uw taken en de begin- en einddatums in, zonder verplichte formules. De balken in het Gantt-diagram geven de duur van de taak weer en worden weergeven met behulp van voorwaardelijke opmaak. Voeg nieuwe taken in door nieuwe rijen in te voegen."]
["Gids voor schermlezers"]
["Deze werkmap bevat twee werkbladen. \n\nUrenstaat\nOver\n\nDe instructies voor elk werkblad staan in kolom A, beginnend in cel A1 van elk werkblad. Ze zijn geschreven met verborgen tekst. Elke stap leidt u door de informatie in die rij. Elke volgende stap gaat verder in cel A2, A3 enzovoort, tenzij uitdrukkelijk anderszins vermeld, bijvoorbeeld wanneer de instructietekst voor de volgende stap is: Ga naar cel A6. \n\nDeze verborgen tekst wordt niet afgedrukt.\n\nAls u deze instructies van het werkblad wilt verwijderen, verwijdert u gewoon kolom A."]
["Aanvullende help"]
["Klik op de koppeling hieronder om naar vertex42.com te gaan voor meer informatie over het gebruik van deze sjabloon, bijvoorbeeld hoe u dagen en werkdagen kunt berekenen, taakafhankelijkheden kunt maken, de kleuren van de balken kunt wijzigen, een schuifbalk kunt toevoegen om eenvoudiger de weergeven week te wijzigen, het weergegeven datumbereik in de grafiek kunt uitbreiden, enzovoort."]
["Het eenvoudige Gantt-diagram gebruiken"]
["Meer projectmanagementsjablonen"]
["Ga naar Vertex42.com om andere projectmanagementsjablonen te downloaden, waaronder verschillende soorten projectplanningen, Gantt-diagrammen, takenlijsten, enzovoort."]
["Projectmanagementsjablonen"]
["Over Vertex42"]
["Vertex42 biedt meer dan 300 professioneel ontworpen werkbladsjablonen voor bedrijven, thuisgebruik en het onderwijs. De meeste van deze sjablonen kunt u gratis downloaden. Deze verzameling omvat een verscheidenheid aan agenda’s, planners en planningen, en ook werkbladen voor uw persoonlijke financiën, zoals budgettering, schuldverlichting en kredietafschrijvingen."]
["Voor bedrijven zijn er sjablonen beschikbaar voor facturen, urenstaten, voorraadbeheer, financiële overzichten en projectplanning. Docenten en leerlingen/studenten hebben de beschikking over resources zoals bladen voor klassenschema’s, rapporten en aanwezigheidsinfo. Organiseer uw gezinsleven met maaltijdplanners, controlelijsten en sportschema’s. Elke sjabloon is zorgvuldig onderzocht, verfijnd en mettertijd verbeterd op basis van de feedback van duizenden gebruikers."]